bitfinex/quotes_ETHUSD_20250703
["timestamp","ask_amount","ask_price","bid_price","bid_amount"]
[1751523874294,0.01,2601.7,2601.6,23.66001331]
[1751523874596,0.01,2601.7,2601.6,23.85201331]
[1751523875506,0.01,2601.7,2601.6,33.85201331]
[1751523878898,0.01,2601.7,2601.6,26.02801331]
[1751523879103,0.01,2601.7,2601.6,33.85101331]
[1751523880599,0.01,2601.7,2601.6,26.02801331]
[1751523880805,0.01,2601.7,2601.6,33.85101331]
[1751523883602,0.01,2601.7,2601.6,33.85001331]
[1751523886380,0.01,2601.8,2601.7,15.15124069]
[1751523886584,0.01,2602.0,2601.9,3.84334524]
[1751523886785,0.01,2602.0,2601.9,19.70888252]
[1751523887603,0.01,2602.0,2601.9,12.61394524]
[1751523887778,0.01,2602.0,2601.9,19.70888252]
[1751523888174,0.01,2602.0,2601.9,4.60094524]
[1751523888409,0.01,2602.0,2601.9,14.65643139]
[1751523888588,0.01,2602.0,2601.9,15.20643139]
[1751523888907,0.01,2602.0,2601.9,14.65643139]
[1751523889408,0.01,2602.0,2601.9,22.30136867]
[1751523889778,0.01,2602.0,2601.9,18.45802343]
[1751523890103,0.01,2602.0,2601.9,10.05748615]
[1751523890410,0.01,2602.0,2601.9,7.832]
[1751523891395,0.01,2602.0,2601.7,0.7896]
[1751523891597,0.01,2602.0,2601.8,7.831]
[1751523891797,0.01,2602.0,2601.5,0.02]
[1751523892004,0.01,2602.0,2601.7,10.0]
[1751523892200,0.01,2602.0,2601.8,7.832]
[1751523892400,0.01,2602.0,2601.5,0.02]
[1751523892722,0.01,2602.0,2601.6,7.832]
[1751523892879,0.01,2602.0,2601.6,14.92693728]
[1751523893880,0.01,2602.0,2601.6,7.832]
[1751523894112,0.01,2602.0,2601.5,0.21924392]
[1751523894305,0.01,2602.0,2601.7,7.839]
[1751523897024,0.01,2602.0,2601.7,8.52095758]
[1751523898023,0.01,2602.0,2601.5,0.21924392]
[1751523898228,0.8108,2601.9,2601.7,0.192]
[1751523898722,0.8108,2601.9,2601.6,7.833]
[1751523899526,0.8108,2601.9,2601.5,0.212]
[1751523899527,0.8108,2601.9,2601.5,0.02]
[1751523899728,0.7912,2601.6,2601.5,0.02]
[1751523900695,2.107,2601.7,2601.5,0.02]
[1751523900901,1.915,2601.7,2601.5,0.02]
[1751523901130,1.915,2601.7,2601.6,0.192]
[1751523902531,0.01,2602.0,2601.6,0.192]
[1751523904936,0.821,2601.6,2601.5,0.02]
[1751523906325,2.742,2601.6,2601.5,0.02]
[1751523906523,1.921,2601.6,2601.5,0.02]
[1751523909546,2.6731,2601.6,2601.5,0.02]
[1751523915156,6.51688843,2601.6,2601.5,0.02]
[1751523915364,2.6731,2601.6,2601.5,0.02]
[1751523915735,6.51688843,2601.6,2601.5,0.02]
[1751523916363,2.6731,2601.6,2601.5,0.02]
[1751523918150,16.63718699,2601.6,2601.5,0.02]
[1751523918460,17.48701329,2601.6,2601.5,0.02]
[1751523919365,17.36671473,2601.6,2601.5,0.02]
[1751523920458,49.60273873,2601.6,2601.5,0.02]
[1751523920646,25.90671473,2601.6,2601.5,0.02]
[1751523920853,49.60273873,2601.6,2601.5,0.02]
[1751523925569,57.43973873,2601.6,2601.5,0.02]
[1751523925734,33.74371473,2601.6,2601.5,0.02]
[1751523925940,57.43973873,2601.6,2601.5,0.02]
[1751523928362,25.90671473,2601.6,2601.5,0.02]
[1751523928676,23.19071473,2601.6,2601.5,0.02]
[1751523928850,19.3479263,2601.6,2601.5,0.02]
[1751523929051,22.34388843,2601.6,2601.5,0.02]
[1751523929278,33.19384689,2601.6,2601.5,0.02]
[1751523929440,23.19384689,2601.6,2601.5,0.02]
[1751523929646,32.34388843,2601.6,2601.5,0.02]
[1751523930178,33.19110907,2601.6,2601.5,0.02]
[1751523930484,32.34388843,2601.6,2601.5,0.02]
[1751523931174,33.18910909,2601.6,2601.5,0.02]
[1751523932546,40.83404637,2601.6,2601.5,0.02]
[1751523932974,64.53007037,2601.6,2601.5,0.02]
[1751523933165,68.58107037,2601.6,2601.5,0.02]
[1751523935177,44.88504637,2601.6,2601.5,0.02]
[1751523935384,1.59932066,2601.6,2601.5,0.02]
[1751523935584,0.01,2601.8,2601.6,0.783]
[1751523936182,0.01,2601.8,2601.5,0.02]
[1751523936486,7.862,2601.7,2601.5,0.02]
[1751523937488,1.919,2601.6,2601.5,0.7706]
[1751523939255,0.01,2601.8,2601.5,0.7706]
[1751523939588,0.01,2601.8,2601.7,7.09493728]
[1751523939787,0.01,2601.8,2601.7,4.65804069]
[1751523940163,0.01,2601.8,2601.7,6.51022464]
[1751523941070,0.01,2601.8,2601.7,16.51022464]
[1751523943396,0.01,2601.8,2601.7,12.66658395]
[1751523944112,1.929,2601.8,2601.5,0.02]
[1751523944665,0.01,2601.8,2601.5,0.02]
[1751523945196,1.919,2601.7,2601.5,0.02]
[1751523945692,0.192,2601.6,2601.5,0.02]
[1751523946076,0.192,2601.6,2601.5,0.8152]
[1751523946467,0.192,2601.6,2601.5,0.02]
[1751523947087,1.919,2601.7,2601.5,0.8468]
[1751523947262,2.111,2601.7,2601.5,0.8468]
[1751523947795,1.919,2601.7,2601.5,1.31789497]
[1751523949076,1.919,2601.7,2601.5,0.8468]
[1751523949490,0.01,2601.8,2601.5,0.8468]
[1751523951088,0.01,2601.8,2601.6,3.84364636]
[1751523951298,0.01,2601.8,2601.7,0.9577]
[1751523953578,0.01,2601.8,2601.7,0.7657]
[1751523955318,0.01,2601.8,2601.7,1.42064039]
[1751523956638,0.01,2601.8,2601.7,5.26428108]
[1751523956845,0.01,2601.8,2601.7,15.26428108]
[1751523957634,0.01,2601.8,2601.7,15.81428108]
[1751523958327,0.01,2602.0,2601.9,3.84334524]
[1751523958531,0.01,2602.0,2601.9,30.01271157]
[1751523958696,0.01,2602.0,2601.9,30.20471157]
[1751523962093,0.01,2602.0,2601.9,26.4604915]
[1751523963102,0.01,2602.0,2601.9,14.74114626]
[1751523963415,0.01,2602.0,2601.9,18.8631]
[1751523963804,0.01,2602.0,2601.9,22.70544524]
[1751523964638,0.01,2602.0,2601.9,18.8621]
[1751523964846,0.01,2602.0,2601.9,22.70544524]
[1751523966205,0.01,2602.0,2601.9,23.25544524]
[1751523966422,0.01,2602.0,2601.9,27.07588459]
[1751523968530,0.01,2602.0,2601.9,29.36470484]
[1751523969727,1e-08,2602.0,2601.9,29.36470484]
[1751523970098,0.01,2602.8,2602.2,0.55]
[1751523970298,0.01,2602.8,2602.7,4.6662639]
[1751523970497,0.01,2602.8,2602.7,25.69114345]
[1751523973003,0.01,2602.8,2602.7,25.97295453]
[1751523974129,0.01,2602.8,2602.7,25.96895453]
[1751523975115,0.01,2602.8,2602.7,26.51895453]
[1751523976239,0.01,2602.8,2602.7,25.97195453]
[1751523977217,0.01,2602.8,2602.7,25.97095453]
[1751523977538,0.01,2602.8,2602.7,26.52095453]
[1751523981218,0.01,2602.8,2602.7,31.24095453]
[1751523982915,0.01,2602.8,2602.7,23.36795453]
[1751523983116,0.01,2602.8,2602.7,33.17895453]
[1751523983642,2.719,2604.3,2603.6,0.7902]
[1751523983946,0.1912,2604.2,2603.7,7.872]
[1751523984140,0.1912,2604.2,2603.8,0.192]
[1751523984834,0.1912,2604.2,2603.8,0.142]
[1751523985433,0.8139,2604.6,2604.0,0.7989]
[1751523985635,0.8139,2604.6,2604.4,0.1912]
[1751523985834,0.8139,2604.6,2603.7,0.7989]
[1751523986034,0.8139,2604.3,2603.9,0.192]
[1751523986224,1.941,2604.7,2603.9,7.89]
[1751523986225,0.8285,2604.6,2603.9,7.89]
[1751523986430,0.8285,2604.6,2604.0,0.8078]
[1751523986637,0.8285,2604.6,2604.1,7.89]
[1751523987654,0.8285,2604.6,2604.0,0.28553848]
[1751523987834,0.8285,2604.6,2604.0,7.896]
[1751523988037,0.8285,2604.6,2604.0,8.19075415]
[1751523988925,0.8285,2604.6,2604.0,1.12685415]
[1751523989126,0.8285,2604.6,2604.0,8.19375415]
[1751523989956,0.8285,2604.6,2604.0,0.29475415]
[1751523990169,0.8285,2604.6,2603.5,0.7989]
[1751523990383,0.83,2604.5,2603.6,7.895]
[1751523990569,0.83,2604.5,2603.5,0.7989]
[1751523990875,10.775,2604.4,2603.3,0.808]
[1751523991052,0.775,2604.2,2603.3,7.899]
[1751523991358,0.775,2604.2,2603.1,10.808]
[1751523991760,0.775,2604.2,2603.2,7.899]
[1751523991957,0.775,2604.2,2603.3,10.0]
[1751523992146,0.775,2604.2,2603.4,7.898]
[1751523992547,2.71,2604.2,2603.4,7.898]
[1751523993968,1.935,2604.2,2603.4,7.898]
[1751523994167,0.7685,2604.1,2603.4,7.898]
[1751523995059,0.7685,2604.1,2603.4,7.848]
[1751523995376,0.7685,2604.1,2603.1,1.09436473]
[1751523995559,0.7685,2604.1,2603.3,10.0]
[1751523995753,0.75,2603.9,2603.3,10.0]
[1751523996376,0.192,2603.8,2603.3,10.192]
[1751523997467,0.192,2603.8,2603.3,0.192]
[1751523997783,0.192,2603.8,2603.3,0.142]
[1751524000186,0.192,2603.8,2603.3,0.092]
[1751524001390,0.75,2603.9,2603.1,8.17136473]
[1751524001559,0.192,2603.7,2603.2,10.192]
[1751524002168,0.192,2603.7,2603.3,0.8265]
[1751524002391,0.75,2603.9,2603.4,0.192]
[1751524002392,0.192,2603.9,2603.4,0.192]
[1751524005457,0.801,2603.8,2603.4,0.192]
[1751524005689,0.192,2603.7,2603.2,10.192]
[1751524008697,0.192,2603.7,2603.4,0.02]
[1751524011105,0.7583,2603.6,2603.4,0.02]
[1751524017351,0.192,2603.7,2603.4,0.02]
[1751524018712,0.7717,2603.9,2603.4,0.02]
[1751524019123,0.9737,2604.1,2603.6,0.192]
[1751524019852,0.01,2604.1,2603.7,0.8277]
[1751524020013,0.01,2604.1,2603.8,0.192]
[1751524021749,0.01,2604.1,2604.0,0.192]
[1751524023035,0.01,2604.1,2604.0,0.9634]
[1751524023438,0.01,2604.1,2604.0,23.23564577]
[1751524024642,0.01,2604.1,2604.0,23.42402759]
[1751524024962,0.01,2604.1,2604.0,27.05608512]
[1751524025965,0.01,2604.1,2604.0,14.78383935]
[1751524026170,0.01,2604.1,2604.0,18.077]
[1751524026466,0.01,2604.1,2604.0,0.192]
[1751524026759,0.192,2604.0,2603.5,0.192]
[1751524026962,0.7844,2603.9,2603.5,10.192]
[1751524027157,0.7844,2603.9,2603.5,0.192]
[1751524027556,0.9764,2603.9,2603.5,0.192]
[1751524029641,0.9764,2603.9,2603.4,0.02]
[1751524029848,0.9764,2603.9,2603.4,0.212]
[1751524030871,0.7844,2603.9,2603.4,0.212]
[1751524031170,0.192,2603.8,2603.4,0.212]
[1751524031739,2.136,2603.8,2603.4,0.162]
[1751524032846,2.136,2603.8,2603.3,0.02]
[1751524034679,0.192,2603.8,2603.2,0.162]
[1751524034974,1.944,2603.7,2603.2,0.162]
[1751524036578,1.944,2603.7,2603.2,0.112]
[1751524038389,2.7284,2603.9,2603.6,0.142]
[1751524038567,0.192,2603.8,2603.3,0.192]
[1751524038773,0.01,2604.1,2603.5,10.0]
[1751524038774,1.944,2604.0,2603.5,10.0]
[1751524038968,1.944,2604.0,2603.6,0.192]
[1751524039885,2.9247,2604.1,2603.6,0.142]
[1751524040056,1.954,2604.1,2603.6,4.61692242]
[1751524040252,0.01,2604.1,2603.8,4.03243495]
[1751524040576,0.01,2604.1,2603.8,0.86491894]
[1751524040896,0.01,2604.1,2604.0,0.192]
[1751524043281,0.01,2604.1,2603.9,0.192]
[1751524043881,0.01,2604.1,2604.0,0.192]
[1751524045056,0.01,2604.1,2604.0,0.9704]
[1751524045295,0.01,2604.1,2604.0,4.81064577]
[1751524045590,0.01,2604.1,2604.0,15.67574803]
[1751524045997,0.01,2604.1,2604.0,23.56374803]
[1751524048178,0.01,2604.1,2604.0,19.72350226]
[1751524048576,0.01,2604.1,2604.0,18.083]
[1751524049082,0.01,2604.1,2604.0,10.192]
[1751524050677,0.01,2604.1,2604.0,18.08]
[1751524051313,0.01,2604.1,2604.0,18.081]
[1751524051682,0.01,2604.1,2604.0,10.192]
[1751524051903,0.01,2604.1,2604.0,19.48323849]
[1751524052510,0.01,2604.1,2604.0,23.32348426]
[1751524053016,0.01,2604.1,2604.0,19.48223849]
[1751524054304,0.8079,2604.1,2604.0,0.192]
[1751524054710,0.01,2604.1,2604.0,0.192]
[1751524059793,0.01,2604.1,2604.0,11.1177129]
[1751524060123,0.01,2604.1,2604.0,21.1177129]
[1751524060423,0.01,2604.1,2604.0,24.48030249]
[1751524061939,0.01,2604.1,2604.0,25.03030249]
[1751524062108,0.01,2604.1,2604.0,25.83240249]
[1751524063341,0.01,2604.1,2604.0,25.78240249]
[1751524064146,0.01,2604.1,2604.0,25.68260967]
[1751524067935,0.01,2604.1,2604.0,33.55660967]
[1751524069551,0.01,2604.1,2604.0,33.55360967]
[1751524073847,0.01,2604.1,2604.0,25.68260967]
[1751524074157,0.01,2604.1,2604.0,33.54660967]
[1751524075332,0.01,2604.1,2604.0,33.54460967]
[1751524075956,0.01,2604.1,2604.0,25.68260967]
[1751524076129,0.01,2604.1,2604.0,33.54460967]
[1751524076453,0.01,2604.1,2604.0,32.74250967]
[1751524077070,0.01,2604.1,2604.0,0.04220718]
[1751524077230,0.01,2604.1,2604.0,11.74245295]
[1751524077566,0.01,2604.1,2604.0,7.90220718]
[1751524078438,0.01,2604.1,2604.0,23.09725295]
[1751524079465,0.01,2604.1,2604.0,23.11725295]
[1751524079665,0.01,2604.1,2604.0,26.75079666]
[1751524080453,0.01,2604.1,2604.0,17.92520718]
[1751524080764,0.01,2604.1,2604.0,21.76545295]
[1751524080948,0.01,2604.1,2604.0,10.06220718]
[1751524081135,0.01,2604.1,2604.0,17.92520718]
[1751524081758,0.01,2604.1,2604.0,10.06220718]
[1751524081957,0.01,2604.1,2604.0,17.92120718]
[1751524083867,0.01,2604.1,2604.0,0.06220718]
[1751524084285,0.01,2604.1,2604.0,7.91920718]
[1751524084841,0.01,2604.1,2604.0,0.06220718]
[1751524085067,0.8055,2604.1,2604.0,7.91920718]
[1751524085438,0.8055,2604.1,2604.0,0.06220718]
[1751524085667,0.8055,2604.1,2604.0,0.02]
[1751524092957,0.01,2604.1,2604.0,0.02]
[1751524093374,0.812,2604.1,2604.0,0.02]
[1751524094074,4.6520983,2604.1,2604.0,0.02]
[1751524094475,14.6520983,2604.1,2604.0,0.02]
[1751524099082,29.72756543,2604.1,2604.0,0.02]
[1751524099262,30.56312362,2604.1,2604.0,0.02]
[1751524100379,54.80914762,2604.1,2604.0,0.02]
[1751524100712,14.26243576,2603.6,2603.5,0.02]
[1751524100875,39.12490289,2603.6,2603.5,0.02]
[1751524101568,39.67490289,2603.6,2603.5,0.02]
[1751524102112,64.20668101,2603.6,2603.5,0.02]
[1751524102263,63.37092689,2603.6,2603.5,0.02]
[1751524102604,64.20632565,2603.6,2603.5,0.02]
[1751524103881,64.20632565,2603.6,2602.9,0.02]
[1751524103882,14.66372109,2603.0,2602.9,0.02]
[1751524104059,31.54018822,2603.0,2602.9,0.02]
[1751524108294,24.45472109,2603.0,2602.9,0.02]
[1751524109402,31.54018822,2603.0,2602.9,0.02]
[1751524112190,24.45472109,2603.0,2602.9,0.02]
[1751524113801,10.822,2603.0,2602.9,0.02]
[1751524114002,20.603,2603.0,2602.9,0.02]
[1751524114623,9.23,2603.2,2602.9,0.02]
[1751524114827,19.782,2603.1,2602.9,0.02]
[1751524116426,23.62358453,2603.1,2602.9,0.02]
[1751524116630,0.7848,2603.0,2602.9,0.02]
[1751524118031,10.5598,2603.0,2602.9,0.02]
[1751524118228,10.5588,2603.0,2602.9,0.02]
[1751524120750,9.773,2603.0,2602.9,0.02]
[1751524120949,9.23,2603.2,2602.9,0.02]
[1751524121126,0.192,2603.0,2602.9,0.02]
[1751524121927,8.039,2603.0,2602.9,0.02]
[1751524132240,0.192,2603.0,2602.9,0.02]
[1751524132441,1.926,2603.0,2602.9,0.9843]
[1751524133441,1.926,2603.0,2602.9,8.06976713]
[1751524133762,1.926,2603.0,2602.9,1.79127671]
[1751524134840,1.926,2603.0,2602.9,0.9843]
[1751524142609,2.118,2603.3,2602.9,0.9843]
[1751524144179,0.192,2603.3,2602.9,0.9843]
[1751524147912,0.01,2603.5,2603.0,7.08546713]
[1751524147913,0.202,2603.5,2603.0,7.08546713]
[1751524148083,0.202,2603.5,2603.1,0.192]
[1751524149010,0.202,2603.5,2603.2,0.7623]
[1751524149185,0.01,2603.5,2603.2,0.7623]
[1751524149386,0.01,2603.5,2603.4,0.192]
[1751524150629,0.01,2603.5,2603.2,1.05537465]
[1751524150923,0.01,2603.5,2603.2,1.24737465]
[1751524151290,0.01,2603.5,2603.2,0.7623]
[1751524151621,0.202,2603.5,2603.2,0.7623]
[1751524153411,0.202,2603.5,2603.2,1.75932778]
[1751524153412,0.01,2603.5,2603.2,1.75932778]
[1751524153705,0.01,2603.5,2603.2,1.95132778]
[1751524154106,0.01,2603.5,2603.2,2.24642099]
[1751524155814,0.01,2603.5,2603.4,7.08546713]
[1751524156018,0.01,2603.5,2603.4,8.04666713]
[1751524156317,0.01,2603.5,2603.4,9.74880811]
[1751524157441,0.01,2603.5,2603.4,17.59180811]
[1751524159945,0.01,2603.5,2603.4,10.50634098]
[1751524160932,0.01,2603.5,2603.2,0.29509321]
[1751524161248,0.01,2603.5,2603.3,8.034]
[1751524163751,0.01,2603.5,2603.3,7.842]
[1751524163972,0.202,2603.5,2603.3,7.842]
[1751524165576,0.202,2603.5,2603.1,1.07449669]
[1751524165745,0.202,2603.5,2603.3,7.842]
[1751524165948,0.202,2603.5,2603.1,1.07449669]
[1751524166193,0.202,2603.5,2603.1,0.30869669]
[1751524166565,0.202,2603.5,2603.1,0.02]
[1751524166889,0.7882,2603.4,2603.1,0.02]
[1751524168586,0.202,2603.5,2603.1,0.02]
[1751524169407,0.202,2603.5,2603.1,8.72787034]
[1751524170376,0.01,2603.5,2603.1,8.72787034]
[1751524170583,0.01,2603.5,2603.2,0.192]
[1751524171580,0.01,2603.5,2603.1,1.64240321]
[1751524171787,0.202,2603.5,2603.1,1.83440321]
[1751524172999,0.202,2603.5,2603.2,0.87013709]
[1751524173573,0.202,2603.5,2603.2,7.841]
[1751524173786,0.202,2603.5,2603.1,9.67540321]
[1751524174815,0.202,2603.5,2603.1,8.053]
[1751524174985,0.7996,2603.4,2603.1,8.053]
[1751524176088,0.7996,2603.4,2603.1,0.212]
[1751524179433,0.7996,2603.4,2603.1,0.02]
[1751524179617,0.9916,2603.4,2603.1,0.02]
[1751524184193,0.7996,2603.4,2603.1,0.02]
[1751524184987,2.7236,2603.4,2603.1,0.02]
[1751524188439,0.192,2603.2,2603.1,0.02]
[1751524192226,1.0176,2603.2,2603.1,0.02]
[1751524195312,1.8507352,2603.2,2603.1,0.02]
[1751524195720,3.7747352,2603.2,2603.1,0.02]
[1751524195930,2.9416,2603.2,2603.1,0.02]
[1751524201454,6.78302593,2603.2,2603.1,0.02]
[1751524201634,24.41849306,2603.2,2603.1,0.02]
[1751524201820,25.25162826,2603.2,2603.1,0.02]
[1751524202656,17.61616113,2603.2,2603.1,0.02]
[1751524203069,18.16616113,2603.2,2603.1,0.02]
[1751524203742,26.00516113,2603.2,2603.1,0.02]
[1751524208468,24.23216113,2603.2,2603.1,0.02]
[1751524208646,33.99416113,2603.2,2603.1,0.02]
[1751524215366,24.23216113,2603.2,2603.1,0.02]
[1751524215571,10.9371352,2603.2,2603.1,0.02]
[1751524215778,10.7851352,2603.2,2603.1,0.02]
[1751524216067,20.7851352,2603.2,2603.1,0.02]
[1751524218170,19.952,2603.2,2603.1,0.02]
[1751524218375,2.114,2603.2,2603.1,0.02]
[1751524218551,9.951,2603.2,2603.1,0.02]
[1751524219892,20.87789306,2603.2,2603.1,0.02]
[1751524220181,41.05838722,2603.2,2603.1,0.02]
[1751524220343,41.71095267,2603.2,2603.1,0.02]
[1751524220543,41.05838722,2603.2,2603.1,0.02]
[1751524222046,15.2213735,2603.1,2603.0,0.02]
[1751524222349,16.05266766,2603.1,2603.0,0.02]
[1751524223548,39.74869166,2603.1,2603.0,0.02]
[1751524225372,38.52684509,2603.0,2602.9,0.02]
[1751524225569,47.19413925,2603.0,2602.9,0.02]
[1751524226166,30.58358238,2603.0,2602.9,0.02]
[1751524226473,54.82960638,2603.0,2602.9,0.02]
[1751524227073,31.13358238,2603.0,2602.9,0.02]
[1751524227272,54.82960638,2603.0,2602.9,0.02]
[1751524229183,3.84275448,2602.3,2602.2,0.02]
[1751524229478,30.68622161,2602.3,2602.2,0.02]
[1751524229697,31.51751577,2602.3,2602.2,0.02]
[1751524229882,27.67476129,2602.3,2602.2,0.02]
[1751524230183,31.51751577,2602.3,2602.2,0.02]
[1751524231591,20.58929416,2602.3,2602.2,0.02]
[1751524232190,24.43204864,2602.3,2602.2,0.02]
[1751524232701,20.58929416,2602.3,2602.2,0.02]
[1751524233068,10.83129416,2602.3,2602.2,0.02]
[1751524233271,20.58929416,2602.3,2602.2,0.02]
[1751524234400,24.43204864,2602.3,2602.2,0.02]
[1751524234898,20.58929416,2602.3,2602.2,0.02]
[1751524236278,10.83129416,2602.3,2602.2,0.02]
[1751524236594,20.59029416,2602.3,2602.2,0.02]
[1751524237475,10.83129416,2602.3,2602.2,0.02]
[1751524237675,20.59029416,2602.3,2602.2,0.8445]
[1751524237891,10.83129416,2602.3,2602.2,0.8445]
[1751524238201,20.59029416,2602.3,2602.2,0.8445]
[1751524238595,20.59029416,2602.3,2602.2,0.02]
[1751524240513,24.43304864,2602.3,2602.2,0.02]
[1751524241983,31.51851577,2602.3,2602.2,0.02]
[1751524246914,31.51451577,2602.3,2602.2,0.02]
[1751524248089,27.67176129,2602.3,2602.2,0.02]
[1751524248705,31.51351577,2602.3,2602.2,0.02]
[1751524251105,10.83129416,2602.3,2602.2,0.02]
[1751524251283,20.58529416,2602.3,2602.2,0.02]
[1751524254214,10.83129416,2602.3,2602.2,0.02]
[1751524254418,20.58429416,2602.3,2602.2,0.02]
[1751524255014,10.83129416,2602.3,2602.2,0.02]
[1751524255215,20.58429416,2602.3,2602.2,0.02]
[1751524259816,20.58329416,2602.3,2602.2,0.02]
[1751524260323,10.83129416,2602.3,2602.2,0.02]
[1751524260521,20.58329416,2602.3,2602.2,0.02]
[1751524261298,0.83129416,2602.3,2602.2,0.02]
[1751524261509,1.92,2602.3,2602.2,0.02]
[1751524261711,2.75129416,2602.3,2602.2,0.02]
[1751524261897,0.83129416,2602.3,2602.2,0.02]
[1751524262099,1.92,2602.3,2602.2,0.02]
[1751524262306,8.66229416,2602.4,2602.2,0.7881]
[1751524262307,1.92,2602.4,2602.2,0.7881]
[1751524262626,0.192,2602.3,2602.2,0.7881]
[1751524266329,0.192,2602.3,2602.2,0.02]
[1751524266625,21.12022161,2602.3,2602.2,0.02]
[1751524266811,21.95138825,2602.3,2602.2,0.02]
[1751524267011,18.10863377,2602.3,2602.2,0.02]
[1751524267731,11.02316664,2602.3,2602.2,0.02]
[1751524267929,20.77316664,2602.3,2602.2,0.02]
[1751524268227,10.77316664,2602.3,2602.2,0.02]
[1751524268603,2.112,2602.3,2602.2,0.02]
[1751524268809,19.47734634,2602.9,2602.2,0.02]
[1751524268810,8.0,2602.9,2602.3,0.8014]
[1751524269132,0.01,2602.9,2602.3,0.8014]
[1751524272344,1.917,2602.8,2602.3,0.8014]
[1751524272528,0.1927,2602.7,2602.3,0.8014]
[1751524272728,10.1927,2602.7,2602.3,0.8014]
[1751524273130,0.82231272,2602.6,2602.3,0.8014]
[1751524273338,10.1927,2602.7,2602.3,0.8014]
[1751524273724,21.86287408,2602.7,2602.3,0.8014]
[1751524273924,0.82139073,2602.6,2602.3,0.8014]
[1751524275926,0.82139073,2602.6,2602.2,0.02]
[1751524277442,10.0,2602.5,2602.2,0.02]
[1751524277846,10.0,2602.6,2602.2,0.02]
[1751524278048,0.82158109,2602.5,2602.2,0.02]
[1751524282436,7.827,2602.4,2602.2,0.02]
[1751524282637,8.64858109,2602.4,2602.2,0.02]
[1751524284055,12.49120153,2602.4,2602.2,0.02]
[1751524284355,11.66962044,2602.4,2602.2,0.02]
[1751524284732,0.65256545,2602.3,2602.2,0.02]
[1751524284921,11.66962044,2602.4,2602.2,0.02]
[1751524285127,3.84275448,2602.3,2602.2,0.02]
[1751524285327,11.66966845,2602.4,2602.2,0.02]
[1751524286145,7.827,2602.4,2602.2,0.02]
[1751524286350,8.6498325,2602.4,2602.2,0.02]
[1751524286855,12.49244528,2602.4,2602.2,0.02]
[1751524287154,3.84275448,2602.3,2602.2,0.02]
[1751524287462,11.66964946,2602.4,2602.2,0.02]
[1751524287632,3.84275448,2602.3,2602.2,0.02]
[1751524287833,11.66967573,2602.4,2602.2,0.02]
[1751524288029,11.66960826,2602.4,2602.2,0.02]
[1751524288560,0.82296805,2602.3,2602.2,0.02]
[1751524288926,4.66572253,2602.3,2602.2,0.02]
[1751524289959,14.66572253,2602.3,2602.2,0.02]
[1751524291169,14.66339722,2602.3,2602.2,0.02]
[1751524295566,10.82064274,2602.3,2602.2,0.02]
[1751524295773,14.66339722,2602.3,2602.2,0.02]
[1751524296770,10.0,2602.3,2602.2,0.02]
[1751524297157,10.82056776,2602.3,2602.2,0.02]
[1751524297773,14.66332224,2602.3,2602.2,0.02]
[1751524299683,15.47912224,2602.3,2602.2,0.02]
[1751524301186,16.02912224,2602.3,2602.2,0.02]
[1751524302883,24.01912224,2602.3,2602.2,0.02]
[1751524306703,32.94232224,2602.3,2602.2,0.02]
[1751524307192,32.39232224,2602.3,2602.2,0.02]
[1751524311269,28.54856776,2602.3,2602.2,0.02]
[1751524311470,32.39132224,2602.3,2602.2,0.02]
[1751524312410,28.54856776,2602.3,2602.2,0.02]
[1751524312711,18.81056776,2602.3,2602.2,0.02]
[1751524313013,28.54856776,2602.3,2602.2,0.02]
[1751524313315,24.40132224,2602.3,2602.2,0.02]
[1751524317017,20.55856776,2602.3,2602.2,0.02]
[1751524317194,24.40132224,2602.3,2602.2,0.02]
[1751524318195,20.55756776,2602.3,2602.2,0.02]
[1751524320288,10.82056776,2602.3,2602.2,0.02]
[1751524320608,20.55656776,2602.3,2602.2,0.02]
[1751524321006,12.73556776,2602.3,2602.2,0.7834]
[1751524321211,2.73556776,2602.3,2602.2,0.7834]
[1751524321737,1.915,2602.3,2602.2,0.7834]
[1751524321885,2.73556776,2602.3,2602.2,0.7834]
[1751524327326,1.915,2602.3,2602.2,0.7834]
[1751524327522,2.73556776,2602.3,2602.2,0.7834]
[1751524334913,2.73556776,2602.3,2602.2,0.02]
[1751524337713,2.74514927,2602.3,2602.2,0.02]
[1751524338340,23.67337088,2602.3,2602.2,0.02]
[1751524338639,32.44047088,2602.3,2602.2,0.02]
[1751524341945,56.68649488,2602.3,2602.2,0.02]
[1751524343525,56.68601978,2602.3,2602.2,0.02]
[1751524343746,56.68601978,2602.3,2602.2,1e-08]
[1751524345056,39.07542615,2602.2,2602.1,0.0192]
[1751524345363,47.72110032,2602.2,2602.1,0.0192]
[1751524346254,41.26810032,2602.2,2602.1,0.0192]
[1751524346459,49.08410032,2602.2,2602.1,0.0192]
[1751524346657,25.38807632,2602.2,2602.1,0.0192]
[1751524346960,25.93807632,2602.2,2602.1,0.0192]